fUST/lending_fUST_20250828
["ID","MTS","AMOUNT","RATE_DAILY","PERIOD"]
[381733641,1756325442535,-480.0,0.00021917,2]
[381733642,1756325442545,-491.95,0.00021917,2]
[381733644,1756325442554,-483.3306304,0.00021917,2]
[381733646,1756325442564,-415.2432688,0.00021917,2]
[381733648,1756325442573,-480.0,0.00021917,2]
[381733650,1756325442582,-480.0,0.00021917,2]
[381733652,1756325442591,-747.73,0.00021917,2]
[381733654,1756325442602,-480.0,0.00021917,2]
[381733656,1756325442612,-480.0,0.00021917,2]
[381733658,1756325442621,-480.0,0.00021917,2]
[381733660,1756325442631,-480.0,0.00021917,2]
[381733662,1756325442640,-480.0,0.00021917,2]
[381733664,1756325442650,-480.0,0.00021917,2]
[381733666,1756325442661,-480.0,0.00021917,2]
[381733668,1756325442670,-151.0,0.00021917,2]
[381733670,1756325442680,-480.0,0.00021917,2]
[381733672,1756325442689,-480.0,0.00021917,2]
[381733674,1756325442700,-622.75,0.00021917,2]
[381733676,1756325442709,-499.29,0.00021917,2]
[381733678,1756325442718,-480.0,0.00021917,2]
[381733680,1756325442728,-480.0,0.00021917,2]
[381733682,1756325442738,-480.0,0.00021917,2]
[381733684,1756325442747,-649.25,0.00021917,2]
[381733686,1756325442757,-151.0,0.00021917,2]
[381733688,1756325442766,-480.0,0.00021917,2]
[381733690,1756325442775,-151.0,0.00021917,2]
[381733692,1756325442784,-480.0,0.00021917,2]
[381733694,1756325442795,-480.0,0.00021917,2]
[381733696,1756325442803,-480.0,0.00021917,2]
[381733698,1756325442812,-825.94,0.00021917,2]
[381733700,1756325442821,-480.0,0.00021917,2]
[381733702,1756325442830,-480.0,0.00021917,2]
[381733704,1756325442840,-480.0,0.00021917,2]
[381733706,1756325442849,-480.0,0.00021917,2]
[381733708,1756325442858,-480.0,0.00021917,2]
[381733710,1756325442868,-480.0,0.00021917,2]
[381733712,1756325442877,-480.0,0.00021917,2]
[381733714,1756325442886,-645.83,0.00021917,2]
[381733716,1756325442895,-480.0,0.00021917,2]
[381733718,1756325442906,-480.0,0.00021917,2]
[381733720,1756325442915,-480.0,0.00021917,2]
[381733722,1756325442925,-480.0,0.00021917,2]
[381733724,1756325442934,-480.0,0.00021917,2]
[381733726,1756325442943,-480.0,0.00021917,2]
[381733728,1756325442952,-372.4744573,0.00021917,2]
[381733730,1756325442961,-151.0,0.00021917,2]
[381733732,1756325442971,-1166.91,0.00021917,2]
[381733734,1756325442982,-480.0,0.00021917,2]
[381733736,1756325442991,-480.0,0.00021917,2]
[381733738,1756325443001,-480.0,0.00021917,2]
[381733740,1756325443011,-480.0,0.00021917,2]
[381733742,1756325443023,-500.0,0.00021917,2]
[381733745,1756325443032,-480.0,0.00021917,2]
[381733748,1756325443041,-527.27,0.00021917,2]
[381733751,1756325443055,-620.92,0.00021917,2]
[381733755,1756325443065,-637.48,0.00021917,2]
[381733757,1756325443074,-500.0,0.00021917,2]
[381733759,1756325443083,-480.0,0.00021917,2]
[381733761,1756325443093,-6920.83,0.00021917,2]
[381733763,1756325443102,-480.0,0.00021917,2]
[381733765,1756325443111,-480.0,0.00021917,2]
[381733768,1756325443121,-480.0,0.00021917,2]
[381733770,1756325443130,-480.0,0.00021917,2]
[381733772,1756325443139,-480.0,0.00021917,2]
[381733774,1756325443149,-632.17,0.00021917,2]
[381733776,1756325443158,-480.0,0.00021917,2]
[381733778,1756325443167,-480.0,0.00021917,2]
[381733780,1756325443176,-480.0,0.00021917,2]
[381733782,1756325443185,-480.0,0.00021917,2]
[381733784,1756325443195,-480.0,0.00021917,2]
[381733786,1756325443204,-480.0,0.00021917,2]
[381733788,1756325443213,-500.0,0.00021917,2]
[381733791,1756325443232,-480.0,0.00021917,2]
[381733793,1756325443243,-480.0,0.00021917,2]
[381733795,1756325443252,-151.0,0.00021917,2]
[381733797,1756325443261,-480.0,0.00021917,2]
[381733799,1756325443271,-481.21499859,0.00021917,2]
[381733801,1756325443280,-151.0,0.00021917,2]
[381733803,1756325443289,-480.0,0.00021917,2]
[381733806,1756325443304,-528.85,0.00021917,2]
[381733808,1756325443313,-480.0,0.00021917,2]
[381733810,1756325443322,-480.0,0.00021917,2]
[381733812,1756325443332,-480.0,0.00021917,2]
[381733814,1756325443341,-480.0,0.00021917,2]
[381733816,1756325443351,-3489.71,0.00021917,2]
[381733818,1756325443361,-480.0,0.00021917,2]
[381733820,1756325443370,-482.40434732,0.00021917,2]
[381733822,1756325443380,-480.0,0.00021917,2]
[381733824,1756325443389,-480.0,0.00021917,2]
[381733826,1756325443399,-480.0,0.00021917,2]
[381733828,1756325443408,-155.132519,0.00021917,2]
[381733830,1756325443417,-481.54373921,0.00021917,2]
[381733832,1756325443427,-480.0,0.00021917,2]
[381733834,1756325443436,-480.0,0.00021917,2]
[381733836,1756325443446,-892.71,0.00021917,2]
[381733838,1756325443460,-480.0,0.00021917,2]
[381733840,1756325443474,-480.0,0.00021917,2]
[381733842,1756325443484,-246.16340142,0.00021917,2]
[381733844,1756325443493,-480.0,0.00021917,2]
[381733846,1756325443503,-480.0,0.00021917,2]
[381733848,1756325443513,-480.0,0.00021917,2]
[381733850,1756325443522,-480.0,0.00021917,2]
[381733852,1756325443532,-533.61,0.00021917,2]
[381733854,1756325443543,-480.0,0.00021917,2]
[381733856,1756325443556,-480.0,0.00021917,2]
[381733858,1756325443565,-480.0,0.00021917,2]
[381733860,1756325443577,-480.0,0.00021917,2]
[381733862,1756325443586,-480.0,0.00021917,2]
[381733864,1756325443596,-480.0,0.00021917,2]
[381733866,1756325443606,-480.0,0.00021917,2]
[381733868,1756325443617,-480.0,0.00021917,2]
[381733870,1756325443627,-480.0,0.00021917,2]
[381733872,1756325443640,-480.0,0.00021917,2]
[381733875,1756325443652,-1065.32,0.00021917,2]
[381733877,1756325443661,-480.0,0.00021917,2]
[381733880,1756325443671,-480.0,0.00021917,2]
[381733882,1756325443680,-642.53,0.00021917,2]
[381733884,1756325443690,-480.0,0.00021917,2]
[381733886,1756325443699,-151.0,0.00021917,2]
[381733888,1756325443709,-480.0,0.00021917,2]
[381733890,1756325443719,-480.0,0.00021917,2]
[381733892,1756325443728,-1339.14,0.00021917,2]
[381733894,1756325443738,-480.0,0.00021917,2]
[381733896,1756325443747,-480.0,0.00021917,2]
[381733898,1756325443756,-480.0,0.00021917,2]
[381733900,1756325443765,-480.0,0.00021917,2]
[381733902,1756325443775,-480.0,0.00021917,2]
[381733904,1756325443785,-480.0,0.00021917,2]
[381733906,1756325443795,-480.0,0.00021917,2]
[381733908,1756325443806,-1265.09,0.00021917,2]
[381733910,1756325443815,-480.0,0.00021917,2]
[381733912,1756325443824,-480.0,0.00021917,2]
[381733914,1756325443833,-480.0,0.00021917,2]
[381733916,1756325443842,-151.0,0.00021917,2]
[381733918,1756325443852,-480.0,0.00021917,2]
[381733920,1756325443862,-480.0,0.00021917,2]
[381733922,1756325443871,-489.77,0.00021917,2]
[381733924,1756325443881,-480.0,0.00021917,2]
[381733926,1756325443890,-480.0,0.00021917,2]
[381733928,1756325443900,-503.7,0.00021917,2]
[381733930,1756325443909,-480.0,0.00021917,2]
[381733932,1756325443919,-629.4,0.00021917,2]
[381733934,1756325443928,-480.0,0.00021917,2]
[381733936,1756325443937,-480.0,0.00021917,2]
[381733938,1756325443947,-546.16,0.00021917,2]
[381733940,1756325443956,-480.0,0.00021917,2]
[381733942,1756325443966,-480.0,0.00021917,2]
[381733944,1756325443977,-480.0,0.00021917,2]
[381733946,1756325443986,-651.29,0.00021917,2]
[381733948,1756325443995,-597.88,0.00021917,2]
[381733950,1756325444006,-480.0,0.00021917,2]
[381733952,1756325444015,-383.11823652,0.00021917,2]
[381733954,1756325444024,-1260.34,0.00021917,2]
[381733956,1756325444033,-725.22,0.00021917,2]
[381733958,1756325444043,-509.75,0.00021917,2]
[381733961,1756325444054,-480.0,0.00021917,2]
[381733963,1756325444064,-480.0,0.00021917,2]
[381733965,1756325444073,-1306.44,0.00021917,2]
[381733967,1756325444083,-480.0,0.00021917,2]
[381733969,1756325444093,-480.0,0.00021917,2]
[381733971,1756325444102,-1262.56,0.00021917,2]
[381733973,1756325444112,-480.0,0.00021917,2]
[381733975,1756325444121,-657.32,0.00021917,2]
[381733977,1756325444131,-714.69,0.00021917,2]
[381733979,1756325444140,-480.0,0.00021917,2]
[381733981,1756325444151,-480.0,0.00021917,2]
[381733983,1756325444160,-480.0,0.00021917,2]
[381733985,1756325444170,-480.0,0.00021917,2]
[381733987,1756325444179,-616.10998147,0.00021917,2]
[381733989,1756325444188,-860.32,0.00021917,2]
[381733991,1756325444197,-720.75,0.00021917,2]
[381733993,1756325444207,-492.22,0.00021917,2]
[381733995,1756325444216,-771.83,0.00021917,2]
[381733997,1756325444226,-480.0,0.00021917,2]
[381733999,1756325444236,-481.77343998,0.00021917,2]
[381734001,1756325444245,-480.0,0.00021917,2]
[381734003,1756325444255,-480.0,0.00021917,2]
[381734005,1756325444264,-151.0,0.00021917,2]
[381734007,1756325444274,-480.0,0.00021917,2]
[381734009,1756325444283,-480.0,0.00021917,2]
[381734011,1756325444293,-299.226289,0.00021917,2]
[381734013,1756325444304,-480.0,0.00021917,2]
[381734015,1756325444313,-480.0,0.00021917,2]
[381734017,1756325444323,-153.298943,0.00021917,2]
[381734019,1756325444333,-480.0,0.00021917,2]
[381734021,1756325444343,-480.0,0.00021917,2]
[381734023,1756325444353,-480.0,0.00021917,2]
[381734025,1756325444362,-480.0,0.00021917,2]
[381734027,1756325444371,-480.0,0.00021917,2]
[381734029,1756325444380,-480.0,0.00021917,2]
[381734031,1756325444390,-480.0,0.00021917,2]
[381734033,1756325444399,-480.0,0.00021917,2]
[381734035,1756325444408,-3730.75,0.00021917,2]
[381734037,1756325444418,-480.0,0.00021917,2]
[381734039,1756325444427,-481.94229769,0.00021917,2]
[381734041,1756325444436,-530.37,0.00021917,2]
[381734043,1756325444445,-480.0,0.00021917,2]
[381734045,1756325444455,-480.0,0.00021917,2]
[381734047,1756325444464,-500.0,0.00021917,2]
[381734049,1756325444473,-480.0,0.00021917,2]
[381734051,1756325444482,-480.0,0.00021917,2]
[381734053,1756325444491,-1292.57,0.00021917,2]
[381734055,1756325444501,-171.323624,0.00021917,2]
[381734057,1756325444510,-480.0,0.00021917,2]
[381734059,1756325444519,-480.0,0.00021917,2]
[381734061,1756325444531,-3472.6,0.00021917,2]
[381734063,1756325444542,-480.0,0.00021917,2]
[381734065,1756325444553,-480.0,0.00021917,2]
[381734067,1756325444562,-480.0,0.00021917,2]
[381734069,1756325444571,-480.0,0.00021917,2]
[381734071,1756325444581,-480.0,0.00021917,2]
[381734073,1756325444590,-569.43,0.00021917,2]
[381734075,1756325444599,-480.0,0.00021917,2]
[381734077,1756325444611,-339.46258677,0.00021917,2]
[381734079,1756325444620,-480.0,0.00021917,2]
[381734081,1756325444629,-151.0,0.00021917,2]
[381734083,1756325444639,-480.0,0.00021917,2]
[381734085,1756325444648,-480.0,0.00021917,2]
[381734087,1756325444658,-480.0,0.00021917,2]
[381734089,1756325444668,-480.0,0.00021917,2]
[381734092,1756325444678,-480.0,0.00021917,2]
[381734094,1756325444688,-151.0,0.00021917,2]
[381734096,1756325444698,-480.0,0.00021917,2]
[381734098,1756325444708,-532.51,0.00021917,2]
[381734100,1756325444718,-151.0,0.00021917,2]
[381734102,1756325444727,-480.0,0.00021917,2]
[381734104,1756325444737,-480.0,0.00021917,2]
[381734106,1756325444746,-480.0,0.00021917,2]
[381734108,1756325444756,-1689.85,0.00021917,2]
[381734110,1756325444765,-1802.1,0.00021917,2]
[381734112,1756325444775,-151.0,0.00021917,2]
[381734114,1756325444784,-480.0,0.00021917,2]
[381734130,1756325445003,-1223.96,0.00021917,2]
[381734131,1756325445013,-480.0,0.00021917,2]
[381734132,1756325445023,-1661.78,0.00021917,2]
[381734133,1756325445033,-558.89,0.00021917,2]
[381734134,1756325445042,-1515.23,0.00021917,2]
[381734135,1756325445054,-977.02,0.00021917,2]
[381734136,1756325445064,-480.0,0.00021917,2]
[381734137,1756325445073,-480.0,0.00021917,2]
[381734138,1756325445083,-480.0,0.00021917,2]
[381734139,1756325445092,-480.0,0.00021917,2]
[381734140,1756325445101,-1955.9,0.00021917,2]
[381734141,1756325445111,-480.0,0.00021917,2]
[381734142,1756325445120,-480.0,0.00021917,2]
[381734143,1756325445130,-537.61,0.00021917,2]
[381734144,1756325445139,-480.0,0.00021917,2]
[381734145,1756325445148,-480.0,0.00021917,2]
[381734147,1756325445157,-480.0,0.00021917,2]
[381734149,1756325445168,-480.0,0.00021917,2]
[381734151,1756325445177,-526.36,0.00021917,2]
[381734153,1756325445187,-998.99,0.00021917,2]
[381734155,1756325445197,-480.0,0.00021917,2]
[381734157,1756325445206,-505.26934023,0.00021917,2]
[381734159,1756325445216,-5413.4,0.00021917,2]
[381734161,1756325445225,-480.0,0.00021917,2]
[381734163,1756325445234,-410.84165421,0.00021917,2]
[381734165,1756325445244,-480.0,0.00021917,2]
[381734167,1756325445253,-504.58,0.00021917,2]
[381734169,1756325445263,-482.35,0.00021917,2]
[381734171,1756325445272,-505.22,0.00021917,2]
[381734173,1756325445282,-480.0,0.00021917,2]
[381734175,1756325445291,-480.0,0.00021917,2]
[381734178,1756325445304,-1073.56,0.00021917,2]
[381734179,1756325445314,-569.53,0.00021917,2]
[381734181,1756325445323,-480.0,0.00021917,2]
[381734183,1756325445333,-480.0,0.00021917,2]
[381734185,1756325445343,-829.08,0.00021917,2]
[381734188,1756325445353,-1411.42,0.00021917,2]
[381734189,1756325445362,-480.0,0.00021917,2]
[381734191,1756325445371,-482.96782084,0.00021917,2]
[381734193,1756325445381,-480.0,0.00021917,2]
[381734195,1756325445390,-480.0,0.00021917,2]
[381734197,1756325445400,-480.0,0.00021917,2]
[381734199,1756325445409,-480.0,0.00021917,2]
[381734201,1756325445419,-480.0,0.00021917,2]
[381734203,1756325445428,-480.0,0.00021917,2]
[381734205,1756325445437,-480.0,0.00021917,2]
[381734207,1756325445447,-3189.84,0.00021917,2]
[381734209,1756325445456,-480.0,0.00021917,2]
[381734211,1756325445466,-480.0,0.00021917,2]
[381734214,1756325445475,-480.0,0.00021917,2]
[381734215,1756325445484,-480.0,0.00021917,2]
[381734217,1756325445494,-480.0,0.00021917,2]
[381734220,1756325445503,-480.0,0.00021917,2]
[381734222,1756325445512,-1047.41,0.00021917,2]
[381734223,1756325445522,-480.0,0.00021917,2]
[381734225,1756325445533,-480.0,0.00021917,2]
[381734227,1756325445543,-480.0,0.00021917,2]
[381734229,1756325445557,-1224.4,0.00021917,2]
[381734231,1756325445566,-480.0,0.00021917,2]
[381734233,1756325445575,-480.0,0.00021917,2]
[381734235,1756325445584,-151.0,0.00021917,2]
[381734237,1756325445593,-1894.57,0.00021917,2]
[381734239,1756325445603,-151.0,0.00021917,2]
[381734241,1756325445614,-480.0,0.00021917,2]
[381734243,1756325445624,-480.0,0.00021917,2]
[381734245,1756325445633,-3836.23,0.00021917,2]
[381734248,1756325445647,-480.0,0.00021917,2]
[381734250,1756325445656,-480.0,0.00021917,2]
[381734252,1756325445665,-507.95,0.00021917,2]
[381734254,1756325445675,-677.08,0.00021917,2]
[381734256,1756325445684,-850.3,0.00021917,2]
[381734258,1756325445694,-480.0,0.00021917,2]
[381734260,1756325445704,-480.0,0.00021917,2]
[381734262,1756325445713,-151.0,0.00021917,2]
[381734264,1756325445722,-480.0,0.00021917,2]
[381734266,1756325445732,-480.0,0.00021917,2]
[381734268,1756325445741,-480.0,0.00021917,2]
[381734270,1756325445750,-480.0,0.00021917,2]
[381734272,1756325445759,-1186.99,0.00021917,2]
[381734274,1756325445768,-480.0,0.00021917,2]
[381734276,1756325445777,-480.0,0.00021917,2]
[381734278,1756325445787,-151.0,0.00021917,2]
[381734280,1756325445796,-1234.34,0.00021917,2]
[381734282,1756325445807,-480.0,0.00021917,2]
[381734284,1756325445816,-458.45181433,0.00021917,2]
[381734286,1756325445825,-481.99507694,0.00021917,2]
[381734288,1756325445835,-480.0,0.00021917,2]
[381734290,1756325445844,-480.0,0.00021917,2]
[381734292,1756325445853,-461.85512257,0.00021917,2]
[381734294,1756325445862,-480.0,0.00021917,2]
[381734296,1756325445872,-480.0,0.00021917,2]
[381734298,1756325445881,-480.0,0.00021917,2]
[381734300,1756325445890,-480.0,0.00021917,2]
[381734302,1756325445900,-1127.27,0.00021917,2]
[381734304,1756325445909,-480.0,0.00021917,2]
[381734306,1756325445918,-152.44941628,0.00021917,2]
[381734309,1756325445927,-480.0,0.00021917,2]
[381734312,1756325445936,-1361.02,0.00021917,2]
[381734314,1756325445946,-480.0,0.00021917,2]
[381734316,1756325445955,-480.0,0.00021917,2]
[381734318,1756325445966,-480.0,0.00021917,2]
[381734320,1756325445975,-480.0,0.00021917,2]
[381734322,1756325445984,-480.0,0.00021917,2]
[381734324,1756325445994,-482.88986836,0.00021917,2]
[381734326,1756325446003,-480.0,0.00021917,2]
[381734328,1756325446013,-4409.43,0.00021917,2]
[381734330,1756325446022,-480.0,0.00021917,2]
[381734332,1756325446031,-480.0,0.00021917,2]
[381734334,1756325446040,-480.0,0.00021917,2]
[381734336,1756325446051,-480.0,0.00021917,2]
[381734338,1756325446060,-480.0,0.00021917,2]
[381734340,1756325446069,-151.0,0.00021917,2]
[381734342,1756325446078,-151.0,0.00021917,2]
[381734344,1756325446089,-1201.19,0.00021917,2]
[381734346,1756325446099,-480.0,0.00021917,2]
[381734348,1756325446108,-480.0,0.00021917,2]
[381734350,1756325446117,-151.0,0.00021917,2]
[381734352,1756325446126,-480.0,0.00021917,2]
[381734354,1756325446136,-855.13,0.00021917,2]
[381734356,1756325446145,-480.0,0.00021917,2]
[381734358,1756325446155,-244.219784,0.00021917,2]
[381734360,1756325446165,-480.0,0.00021917,2]
[381734362,1756325446174,-151.0,0.00021917,2]
[381734364,1756325446183,-480.0,0.00021917,2]
[381734366,1756325446193,-2607.41,0.00021917,2]
[381734368,1756325446202,-151.0,0.00021917,2]
[381734370,1756325446212,-151.0,0.00021917,2]
[381734372,1756325446221,-1094.9,0.00021917,2]
[381734374,1756325446231,-480.0,0.00021917,2]
[381734376,1756325446240,-480.0,0.00021917,2]
[381734378,1756325446249,-151.0,0.00021917,2]
[381734380,1756325446259,-480.0,0.00021917,2]
[381734382,1756325446268,-923.98,0.00021917,2]
[381734385,1756325446281,-2174.03,0.00021917,2]
[381734387,1756325446291,-480.0,0.00021917,2]
[381734389,1756325446302,-570.05,0.00021917,2]
[381734391,1756325446311,-480.0,0.00021917,2]
[381734393,1756325446320,-480.0,0.00021917,2]
[381734394,1756325446330,-728.09,0.00021917,2]
[381734396,1756325446339,-1310.36,0.00021917,2]
[381734398,1756325446348,-480.0,0.00021917,2]
[381734401,1756325446358,-2486.66,0.00021917,2]
[381734403,1756325446367,-480.0,0.00021917,2]
[381734405,1756325446376,-225.865544,0.00021917,2]
[381734407,1756325446385,-500.0,0.00021917,2]
[381734409,1756325446394,-480.0,0.00021917,2]
[381734411,1756325446403,-480.0,0.00021917,2]
[381734413,1756325446413,-1371.75,0.00021917,2]
[381734415,1756325446422,-480.0,0.00021917,2]
[381734417,1756325446431,-614.31,0.00021917,2]
[381734419,1756325446440,-480.0,0.00021917,2]
[381734421,1756325446450,-480.0,0.00021917,2]
[381734423,1756325446459,-480.0,0.00021917,2]
[381734425,1756325446468,-480.0,0.00021917,2]
[381734427,1756325446477,-480.0,0.00021917,2]
[381734429,1756325446487,-480.0,0.00021917,2]
[381734431,1756325446496,-480.0,0.00021917,2]
[381734433,1756325446505,-480.0,0.00021917,2]
[381734435,1756325446514,-480.0,0.00021917,2]
[381734437,1756325446523,-480.0,0.00021917,2]
[381734438,1756325446534,-480.0,0.00021917,2]
[381734440,1756325446543,-480.0,0.00021917,2]
[381734442,1756325446556,-480.0,0.00021917,2]
[381734444,1756325446565,-480.0,0.00021917,2]
[381734446,1756325446577,-151.0,0.00021917,2]
[381734449,1756325446586,-415.90203473,0.00021917,2]
[381734451,1756325446599,-597.9,0.00021917,2]
[381734453,1756325446611,-151.0,0.00021917,2]
[381734455,1756325446621,-1392.96,0.00021917,2]
[381734457,1756325446630,-151.0,0.00021917,2]
[381734459,1756325446639,-480.0,0.00021917,2]
[381734461,1756325446648,-480.0,0.00021917,2]
[381734463,1756325446658,-480.0,0.00021917,2]
[381734465,1756325446667,-635.0,0.00021917,2]
[381734467,1756325446676,-480.0,0.00021917,2]
[381734469,1756325446686,-480.0,0.00021917,2]
[381734471,1756325446695,-480.0,0.00021917,2]
[381734473,1756325446704,-618.88,0.00021917,2]
[381734475,1756325446713,-747.0,0.00021917,2]
[381734477,1756325446722,-715.84,0.00021917,2]
[381734479,1756325446732,-480.0,0.00021917,2]
[381734481,1756325446741,-564.63,0.00021917,2]
[381734483,1756325446751,-480.0,0.00021917,2]
[381734484,1756325446760,-480.0,0.00021917,2]
[381734487,1756325446769,-480.0,0.00021917,2]
[381734489,1756325446779,-480.0,0.00021917,2]
[381734490,1756325446788,-675.64,0.00021917,2]
[381734492,1756325446800,-1259.37,0.00021917,2]
[381734494,1756325446811,-480.0,0.00021917,2]
[381734496,1756325446820,-270.367982,0.00021917,2]
[381734498,1756325446829,-480.0,0.00021917,2]
[381734500,1756325446839,-480.0,0.00021917,2]
[381734502,1756325446848,-739.44,0.00021917,2]
[381734504,1756325446857,-4096.08,0.00021917,2]
[381734506,1756325446866,-480.0,0.00021917,2]
[381734508,1756325446876,-480.0,0.00021917,2]
[381734510,1756325446885,-480.0,0.00021917,2]
[381734512,1756325446894,-480.0,0.00021917,2]
[381734513,1756325446903,-480.0,0.00021917,2]
[381734515,1756325446913,-480.0,0.00021917,2]
[381734517,1756325446923,-480.0,0.00021917,2]
[381734519,1756325446932,-151.0,0.00021917,2]
[381734521,1756325446942,-151.0,0.00021917,2]
[381734523,1756325446951,-480.0,0.00021917,2]
[381734525,1756325446960,-480.0,0.00021917,2]
[381734527,1756325446969,-688.57,0.00021917,2]
[381734529,1756325446978,-480.0,0.00021917,2]
[381734531,1756325446987,-480.0,0.00021917,2]
[381734533,1756325446996,-480.0,0.00021917,2]
[381734535,1756325447006,-1178.9,0.00021917,2]
[381734537,1756325447015,-480.0,0.00021917,2]
[381734538,1756325447025,-567.22560353,0.00021917,2]
[381734540,1756325447034,-480.0,0.00021917,2]
[381734542,1756325447044,-510.85,0.00021917,2]
[381734544,1756325447057,-186.92480939,0.00021917,2]
[381734546,1756325447066,-475.57875979,0.00021917,2]
[381734584,1756325447415,-196.30124021,0.00021917,2]
[381734586,1756325447424,-153.0,0.00021918,2]
[381734588,1756325447433,-153.0,0.00021918,2]
[381734590,1756325447442,-153.0,0.00021918,2]
[381734591,1756325447451,-153.0,0.00021918,2]
[381734592,1756325447461,-153.0,0.00021918,2]
[381734593,1756325447470,-153.0,0.00021918,2]
[381734594,1756325447479,-32973.2979769,0.00021918,2]
[381734595,1756325447488,-825.527002,0.00021918,2]
[381734596,1756325447497,-825.527002,0.00021918,2]
[381734597,1756325447505,-825.527002,0.00021918,2]
[381734598,1756325447514,-825.527002,0.00021918,2]
[381734599,1756325447523,-200.0,0.00021918,2]
[381734600,1756325447534,-420.0,0.00021957,2]
[381734601,1756325447544,-72364.45,0.00022,7]
[381734603,1756325447556,-6954.37,0.00022,7]
[381734605,1756325447564,-12000.24,0.00022,2]
[381734607,1756325447575,-151.0,0.00022,3]
[381734609,1756325447583,-151.0,0.00022,7]
[381734611,1756325447592,-151.0,0.00022,7]
[381734613,1756325447601,-297.26444,0.00022,7]
[381734615,1756325447612,-151.0,0.00022,7]
[381734617,1756325447621,-151.0,0.00022,7]
[381734619,1756325447630,-151.0,0.00022,7]
[381734621,1756325447639,-151.0,0.00022,7]
[381734623,1756325447650,-151.0,0.00022,7]
[381734625,1756325447660,-151.0,0.00022,7]
[381734627,1756325447669,-216.14835892,0.00022,7]
[381734629,1756325447678,-417.15472785,0.00022,7]
[381734631,1756325447688,-160.0,0.00022,7]
[381734633,1756325447696,-529.56067766,0.00022,7]
[381734635,1756325447706,-425.44119842,0.00022,7]
[381734637,1756325447715,-12707.75045307,0.00022,7]
[381734639,1756325447725,-239.0,0.00022013,2]
[381734641,1756325447734,-239.0,0.00022018,2]
[381734643,1756325447743,-196.894928,0.00022087,10]
[381734645,1756325447752,-590.66,0.000221,2]
[381734647,1756325447761,-417.15472785,0.00022108,2]
[381734649,1756325447772,-160.0,0.00022108,2]
[381734651,1756325447781,-160.0,0.00022108,2]
[381734653,1756325447790,-160.0,0.00022108,2]
[381734655,1756325447799,-529.56067766,0.00022108,2]
[381734657,1756325447809,-216.14835892,0.00022108,2]
[381734659,1756325447818,-425.44119842,0.00022108,2]
[381734661,1756325447827,-232.59867797,0.00022108,2]
[381734663,1756325447836,-845.298898,0.00022108,2]
[381734665,1756325447845,-217.23771399,0.00022108,2]
[381734667,1756325447854,-160.0,0.00022108,2]
[381734669,1756325447863,-160.0,0.00022108,2]
[381734671,1756325447872,-12707.75045307,0.00022108,2]
[381734673,1756325447882,-151.0,0.00022108,7]
[381734675,1756325447891,-160.0,0.00022108,2]